fUSD/lending_fUSD_20250519
["ID","MTS","AMOUNT","RATE_DAILY","PERIOD"]
[361621824,1747645482551,-420.0,0.00013698,2]
[361621825,1747645482577,-420.0,0.00013698,2]
[361621826,1747645482602,-400.0,0.00013698,2]
[361621827,1747645482627,-400.0,0.00013698,2]
[361621828,1747645482652,-400.0,0.00013698,2]
[361621829,1747645482677,-555.0,0.00013698,2]
[361621830,1747645482702,-400.0,0.00013698,2]
[361621831,1747645482727,-420.0,0.00013698,2]
[361621832,1747645482751,-420.0,0.00013698,2]
[361621833,1747645482779,-1059.06,0.00013698,2]
[361621834,1747645482811,-1018.98,0.00013698,2]
[361621835,1747645482837,-420.0,0.00013698,2]
[361621836,1747645482863,-420.0,0.00013698,2]
[361621837,1747645482889,-420.0,0.00013698,2]
[361621838,1747645482915,-420.0,0.00013698,2]
[361621839,1747645482941,-420.0,0.00013698,2]
[361621840,1747645482969,-723.92,0.00013698,2]
[361621841,1747645482996,-400.0,0.00013698,2]
[361621842,1747645483028,-9535.52,0.00013698,2]
[361621843,1747645483055,-420.0,0.00013698,2]
[361621844,1747645483084,-1221.77,0.00013698,2]
[361621845,1747645483112,-420.0,0.00013698,2]
[361621846,1747645483139,-534.86,0.00013698,2]
[361621847,1747645483167,-400.0,0.00013698,2]
[361621848,1747645483193,-400.0,0.00013698,2]
[361621849,1747645483219,-420.0,0.00013698,2]
[361621850,1747645483246,-420.0,0.00013698,2]
[361621851,1747645483277,-494.52,0.00013698,2]
[361621852,1747645483304,-420.0,0.00013698,2]
[361621853,1747645483331,-528.43,0.00013698,2]
[361621854,1747645483358,-420.0,0.00013698,2]
[361621855,1747645483384,-400.0,0.00013698,2]
[361621856,1747645483410,-457.06308461,0.00013698,2]
[361621857,1747645483436,-31137.12965238,0.00013698,2]
[361621858,1747645483450,-420.0,0.00013698,2]
[361621859,1747645483468,-420.0,0.00013698,2]
[361621860,1747645483483,-547.78,0.00013698,2]
[361621861,1747645483494,-420.0,0.00013698,2]
[361621862,1747645483505,-420.0,0.00013698,2]
[361621863,1747645483517,-400.0,0.00013698,2]
[361621864,1747645483528,-420.0,0.00013698,2]
[361621865,1747645483540,-420.0,0.00013698,2]
[361621866,1747645483595,-420.0,0.00013698,2]
[361621867,1747645483655,-585.38,0.00013698,2]
[361621868,1747645483667,-1845.35,0.00013698,2]
[361621869,1747645483680,-716.83,0.00013698,2]
[361621870,1747645483691,-420.0,0.00013698,2]
[361621871,1747645483706,-726.56,0.00013698,2]
[361621872,1747645483758,-447.79,0.00013698,2]
[361621873,1747645483770,-420.0,0.00013698,2]
[361621874,1747645483787,-420.0,0.00013698,2]
[361621875,1747645483798,-420.0,0.00013698,2]
[361621876,1747645483810,-420.0,0.00013698,2]
[361621877,1747645483821,-420.0,0.00013698,2]
[361621878,1747645483842,-420.0,0.00013698,2]
[361621879,1747645483854,-420.0,0.00013698,2]
[361621880,1747645483864,-617.98,0.00013698,2]
[361621881,1747645483875,-401.88512933,0.00013698,2]
[361621882,1747645483897,-498.56,0.00013698,2]
[361621883,1747645483957,-420.0,0.00013698,2]
[361621884,1747645483968,-451.51,0.00013698,2]
[361621885,1747645483979,-630.6,0.00013698,2]
[361621886,1747645484001,-420.0,0.00013698,2]
[361621887,1747645484022,-1370.89,0.00013698,2]
[361621888,1747645484033,-1095.67,0.00013698,2]
[361621889,1747645484044,-400.0,0.00013698,2]
[361621890,1747645484055,-426.29,0.00013698,2]
[361621891,1747645484067,-400.0,0.00013698,2]
[361621892,1747645484078,-1007.2,0.00013698,2]
[361621893,1747645484089,-420.0,0.00013698,2]
[361621894,1747645484100,-400.0,0.00013698,2]
[361621895,1747645484111,-400.0,0.00013698,2]
[361621896,1747645484122,-1016.15,0.00013698,2]
[361621897,1747645484133,-420.0,0.00013698,2]
[361621898,1747645484144,-420.0,0.00013698,2]
[361621899,1747645484156,-400.0,0.00013698,2]
[361621900,1747645484167,-1056.92,0.00013698,2]
[361621901,1747645484185,-400.0,0.00013698,2]
[361621902,1747645484197,-2411.56,0.00013698,2]
[361621903,1747645484208,-568.27,0.00013698,2]
[361621904,1747645484220,-420.0,0.00013698,2]
[361621905,1747645484231,-575.26,0.00013698,2]
[361621906,1747645484242,-420.0,0.00013698,2]
[361621907,1747645484253,-400.0,0.00013698,2]
[361621908,1747645484266,-734.64,0.00013698,2]
[361621909,1747645484280,-400.0,0.00013698,2]
[361621910,1747645484295,-1049.1,0.00013698,2]
[361621911,1747645484306,-2151.24,0.00013698,2]
[361621912,1747645484318,-400.0,0.00013698,2]
[361621913,1747645484329,-420.0,0.00013698,2]
[361621914,1747645484340,-3896.03,0.00013698,2]
[361621915,1747645484353,-725.94,0.00013698,2]
[361621916,1747645484366,-446.77,0.00013698,2]
[361621917,1747645484377,-428.53,0.00013698,2]
[361621918,1747645484388,-1674.98,0.00013698,2]
[361621919,1747645484400,-400.0,0.00013698,2]
[361621920,1747645484433,-521.63,0.00013698,2]
[361621921,1747645484453,-420.0,0.00013698,2]
[361621922,1747645484464,-734.87,0.00013698,2]
[361621923,1747645484475,-420.0,0.00013698,2]
[361621924,1747645484494,-420.0,0.00013698,2]
[361621925,1747645484560,-420.0,0.00013698,2]
[361621926,1747645484598,-921.61,0.00013698,2]
[361621927,1747645484610,-420.0,0.00013698,2]
[361621928,1747645484621,-3998.65,0.00013698,2]
[361621929,1747645484632,-420.0,0.00013698,2]
[361621930,1747645484651,-420.0,0.00013698,2]
[361621931,1747645484662,-420.0,0.00013698,2]
[361621932,1747645484677,-400.0,0.00013698,2]
[361621933,1747645484688,-420.0,0.00013698,2]
[361621934,1747645484703,-420.0,0.00013698,2]
[361621935,1747645484714,-1470.8,0.00013698,2]
[361621936,1747645484724,-400.0,0.00013698,2]
[361621937,1747645484736,-69.45521829,0.00013698,2]
[361621938,1747645484744,-350.54478171,0.00013698,2]
[361621939,1747645484808,-69.45521829,0.00013698,2]
[361621940,1747645484818,-420.0,0.00013698,2]
[361621941,1747645484827,-433.39478171,0.00013698,2]
[361621942,1747645484933,-174.92521829,0.00013698,2]
[361621943,1747645484944,-2557.78478171,0.00013698,2]
[361621944,1747645484980,-732.35,0.00013698,2]
[361621945,1747645484991,-420.0,0.00013698,2]
[361621946,1747645485003,-420.0,0.00013698,2]
[361621947,1747645485017,-2041.82,0.00013698,2]
[361621948,1747645485033,-400.0,0.00013698,2]
[361621949,1747645485050,-7000.96,0.00013698,2]
[361621950,1747645485061,-420.0,0.00013698,2]
[361621951,1747645485072,-1488.03,0.00013698,2]
[361621952,1747645485083,-220.77521829,0.00013698,2]
[361621953,1747645485093,-199.22478171,0.00013698,2]
[361621954,1747645485124,-200.77521829,0.00013698,2]
[361621955,1747645485133,-219.22478171,0.00013698,2]
[361621956,1747645485197,-200.77521829,0.00013698,2]
[361621957,1747645485207,-1060.28478171,0.00013698,2]
[361621958,1747645485234,-238.70521829,0.00013698,2]
[361621959,1747645485243,-441.09,0.00013698,2]
[361621960,1747645485253,-379.30478171,0.00013698,2]
[361621961,1747645485268,-40.69521829,0.00013698,2]
[361621962,1747645485281,-448.38,0.00013698,2]
[361621963,1747645485290,-232.76478171,0.00013698,2]
[361621964,1747645485302,-479.82521829,0.00013698,2]
[361621965,1747645485312,-9.38478171,0.00013698,2]
[361621966,1747645485324,-400.0,0.00013698,2]
[361621967,1747645485343,-10.61521829,0.00013698,2]
[361621968,1747645485353,-150.39066523,0.00013698,2]
[361621969,1747645485362,-1781.01411648,0.00013698,2]
[361621970,1747645485374,-644.19,0.00013698,2]
[361621971,1747645485385,-400.0,0.00013698,2]
[361621972,1747645485396,-1.60588352,0.00013698,2]
[361621973,1747645485405,-398.39411648,0.00013698,2]
[361621974,1747645485417,-400.0,0.00013698,2]
[361621975,1747645485427,-420.0,0.00013698,2]
[361621976,1747645485439,-265.89088625,0.00013698,2]
[361621977,1747645485450,-400.0,0.00013698,2]
[361621978,1747645485460,-690.77,0.00013698,2]
[361621979,1747645485478,-400.0,0.00013698,2]
[361621980,1747645485489,-221.68499727,0.00013698,2]
[361621981,1747645485498,-158.31500273,0.00013698,2]
[361621982,1747645485509,-1211.63499727,0.00013698,2]
[361621983,1747645485522,-420.0,0.00013698,2]
[361621984,1747645485532,-420.0,0.00013698,2]
[361621985,1747645485541,-1292.94,0.00013698,2]
[361621986,1747645485551,-400.0,0.00013698,2]
[361621987,1747645485560,-23.53500273,0.00013698,2]
[361621988,1747645485789,-396.46499727,0.00013698,2]
[361621989,1747645485799,-503.58500273,0.00013698,2]
[361621990,1747645485810,-400.0,0.00013698,2]
[361621991,1747645485823,-798.33,0.00013698,2]
[361621992,1747645485836,-420.0,0.00013698,2]
[361621993,1747645485848,-195.53499727,0.00013698,2]
[361621994,1747645485857,-376.21500273,0.00013698,2]
[361621995,1747645485869,-518.34499727,0.00013698,2]
[361621996,1747645485878,-30.17500273,0.00013698,2]
[361621997,1747645485897,-420.0,0.00013698,2]
[361621998,1747645485908,-15.52499727,0.00013698,2]
[361621999,1747645485917,-384.47500273,0.00013698,2]
[361622000,1747645485930,-15.52499727,0.00013698,2]
[361622001,1747645485941,-404.47500273,0.00013698,2]
[361622002,1747645485953,-399.01499727,0.00013698,2]
[361622003,1747645485964,-154.96399949,0.00013698,2]
[361622004,1747645485975,-265.03600051,0.00013698,2]
[361622005,1747645485984,-904.6,0.00013698,2]
[361622006,1747645485993,-476.86,0.00013698,2]
[361622007,1747645486002,-442.80399949,0.00013698,2]
[361622008,1747645486013,-290.16388352,0.00013698,2]
[361622009,1747645486032,-56.10211699,0.00013698,2]
[361622010,1747645486041,-363.89788301,0.00013698,2]
[361622011,1747645486052,-56.10211699,0.00013698,2]
[361622012,1747645486062,-363.89788301,0.00013698,2]
[361622013,1747645486490,-36.10211699,0.00013698,2]
[361622014,1747645486500,-400.0,0.00013698,2]
[361622015,1747645486510,-400.0,0.00013698,2]
[361622016,1747645486519,-179.96788301,0.00013698,2]
[361622017,1747645486531,-400.0,0.00013698,2]
[361622018,1747645486542,-62.28211699,0.00013698,2]
[361622019,1747645486551,-618.21,0.00013698,2]
[361622020,1747645486561,-400.0,0.00013698,2]
[361622021,1747645486570,-56.90788301,0.00013698,2]
[361622022,1747645486587,-454.87,0.00013698,2]
[361622023,1747645486598,-400.0,0.00013698,2]
[361622024,1747645486609,-230.81211699,0.00013698,2]
[361622025,1747645486618,-189.18788301,0.00013698,2]
[361622026,1747645486629,-210.81211699,0.00013698,2]
[361622027,1747645486639,-209.18788301,0.00013698,2]
[361622028,1747645486652,-190.81211699,0.00013698,2]
[361622029,1747645486662,-420.0,0.00013698,2]
[361622030,1747645486672,-400.0,0.00013698,2]
[361622031,1747645486681,-400.0,0.00013698,2]
[361622032,1747645486691,-400.0,0.00013698,2]
[361622033,1747645486700,-400.0,0.00013698,2]
[361622034,1747645486709,-198.76788301,0.00013698,2]
[361622035,1747645486727,-420.0,0.00013,2]
[361622036,1747645486738,-80.0,0.00013,2]
[361622037,1747645486748,-321.88211699,0.00013698,2]
[361622038,1747645486757,-18.11788301,0.00013698,2]
[361622039,1747645486778,-420.0,0.00013698,2]
[361622040,1747645486790,-36.50730044,0.00013698,2]
[361622041,1747645486799,-500.0,0.00013699,2]
[361622042,1747645486809,-726.59,0.00013699,2]
[361622043,1747645486819,-154.10269956,0.00013699,2]
[361622044,1747645486836,-45.89730044,0.00013699,2]
[361622045,1747645486845,-150.09412696,0.00013699,2]
[361622046,1747645486854,-224.0085726,0.00013699,2]
[361622047,1747645486866,-595.51,0.00013699,2]
[361622048,1747645486877,-400.0,0.00013699,2]
[361622049,1747645486888,-420.0,0.00013699,2]
[361622050,1747645486899,-260.79822745,0.00013699,2]
[361622051,1747645486910,-400.0,0.00013699,2]
[361622052,1747645486925,-400.0,0.00013699,2]
[361622053,1747645486935,-340.0,0.00013699,2]
[361622054,1747645486964,-341.30536184,0.00013698,2]
[361622055,1747645486973,-78.69463816,0.00013699,2]
[361622056,1747645486985,-420.0,0.00013699,2]
[361622057,1747645487002,-400.0,0.00013699,2]
[361622058,1747645487013,-420.0,0.00013699,2]
[361622059,1747645487027,-3491.57,0.00013699,2]
[361622060,1747645487073,-631.77,0.00013699,2]
[361622061,1747645487094,-2187.59,0.00013699,2]
[361622062,1747645487105,-45.73376671,0.00013699,2]
[361622063,1747645487115,-199.210575,0.00013699,2]
[361622064,1747645487125,-199.210575,0.00013699,2]
[361622065,1747645487134,-12.52508329,0.00013699,2]
[361622066,1747645487193,-183.67582671,0.00013699,2]
[361622067,1747645487203,-196.20091,0.00013699,2]
[361622068,1747645487213,-20.12326329,0.00013699,2]
[361622069,1747645487269,-130.87673671,0.00013699,2]
[361622070,1747645487282,-151.0,0.00013699,2]
[361622071,1747645487292,-118.12326329,0.00013699,2]
[361622072,1747645487316,-32.87673671,0.00013699,2]
[361622073,1747645487327,-151.0,0.00013699,2]
[361622074,1747645487337,-400.94326329,0.00013699,2]
[361622075,1747645487349,-20.3262402,0.00013699,2]
[361622076,1747645487359,-582.3637598,0.00013699,2]
[361622077,1747645487371,-420.0,0.00013699,2]
[361622078,1747645487383,-1531.1152402,0.00013699,2]
[361622079,1747645487392,-168.235,0.00013699,2]
[361622080,1747645487401,-412.2497598,0.00013699,2]
[361622081,1747645487416,-117.77992304,0.00013699,2]
[361622082,1747645487425,-302.22007696,0.00013699,2]
[361622083,1747645487459,-197.77992304,0.00013699,2]
[361622084,1747645487468,-530.02968284,0.00013699,2]
[361622085,1747645487477,-500.0,0.00013699,2]
[361622086,1747645487486,-530.02968284,0.00013699,2]
[361622087,1747645487495,-430.00071128,0.00013699,2]
[361622088,1747645487527,-100.02897156,0.00013699,2]
[361622089,1747645487536,-162.30460122,0.00013699,2]
[361622090,1747645487545,-336.05642722,0.00013699,2]
[361622091,1747645487579,-193.97325562,0.00013699,2]
[361622092,1747645487589,-293.32674438,0.00013699,2]
[361622093,1747645487632,-273.64038307,0.00013698,2]
[361622094,1747645487645,-417.35961693,0.00013698,2]
[361622095,1747645487655,-2.64038307,0.00013699,2]
[361622096,1747645487674,-234.06255539,0.00013699,2]
[361622097,1747645487683,-530.02968284,0.00013699,2]
[361622098,1747645487692,-500.0,0.00013699,2]
[361622099,1747645487702,-530.02968284,0.00013699,2]
[361622100,1747645487711,-364.95857633,0.00013699,2]
[361622101,1747645487723,-530.02968284,0.00013699,2]
[361622102,1747645487732,-530.02968284,0.00013699,2]
[361622103,1747645487742,-530.02968284,0.00013699,2]
[361622104,1747645487753,-530.02968284,0.00013699,2]
[361622105,1747645487763,-530.02968284,0.00013699,2]
[361622106,1747645487775,-530.02968284,0.00013699,2]
[361622107,1747645487784,-530.02968284,0.00013699,2]
[361622108,1747645487793,-530.02968284,0.00013699,2]
[361622109,1747645487801,-530.02968284,0.00013699,2]
[361622110,1747645487810,-530.02968284,0.00013699,2]
[361622111,1747645487819,-530.02968284,0.00013699,2]
[361622112,1747645487829,-530.02968284,0.00013699,2]
[361622113,1747645487838,-530.02968284,0.00013699,2]
[361622114,1747645487847,-530.02968284,0.00013699,2]
[361622115,1747645487856,-530.02968284,0.00013699,2]
[361622116,1747645487865,-530.02968284,0.00013699,2]
[361622117,1747645487874,-199.25457716,0.00013699,2]
[361622118,1747645487885,-330.77510568,0.00013699,2]
[361622119,1747645487894,-530.02968284,0.00013699,2]
[361622120,1747645487903,-84.89521148,0.00013699,2]
[361622121,1747645487915,-420.0,0.00013699,2]
[361622122,1747645487929,-25.13447136,0.00013699,2]
[361622123,1747645487938,-505.29552864,0.00013699,2]
[361622124,1747645487952,-24.7341542,0.00013699,2]
[361622125,1747645487961,-395.2658458,0.00013699,2]
[361622126,1747645487972,-134.76383704,0.00013699,2]
[361622127,1747645487981,-516.35616296,0.00013699,2]
[361622128,1747645487999,-13.67351988,0.00013699,2]
[361622129,1747645488008,-530.02968284,0.00013699,2]
[361622130,1747645488018,-78.67679728,0.00013699,2]
[361622131,1747645488037,-451.35288556,0.00013699,2]
[361622132,1747645488046,-530.02968284,0.00013699,2]
[361622133,1747645488056,-530.02968284,0.00013699,2]
[361622134,1747645488065,-464.91774876,0.00013699,2]
[361622135,1747645488076,-65.11193408,0.00013699,2]
[361622136,1747645488086,-530.02968284,0.00013699,2]
[361622137,1747645488095,-95.14838308,0.00013699,2]
[361622138,1747645488106,-434.88129976,0.00013699,2]
[361622139,1747645488116,-530.02968284,0.00013699,2]
[361622140,1747645488126,-530.02968284,0.00013699,2]
[361622141,1747645488136,-181.17933456,0.00013699,2]
[361622142,1747645488147,-348.85034828,0.00013699,2]
[361622143,1747645488157,-71.14965172,0.00013699,2]
[361622144,1747645488175,-458.88003112,0.00013699,2]
[361622145,1747645488184,-109.46996888,0.00013699,2]
[361622146,1747645488239,-420.0,0.00013699,2]
[361622147,1747645488297,-0.55971396,0.00013699,2]
[361622148,1747645488307,-530.02968284,0.00013699,2]
[361622149,1747645488317,-530.02968284,0.00013699,2]
[361622150,1747645488327,-530.02968284,0.00013699,2]
[361622151,1747645488336,-93.88123752,0.00013699,2]
[361622152,1747645488348,-420.0,0.00013699,2]
[361622153,1747645488361,-16.14844532,0.00013699,2]
[361622154,1747645488370,-403.85155468,0.00013699,2]
[361622155,1747645488394,-126.17812816,0.00013699,2]
[361622156,1747645488403,-530.02968284,0.00013699,2]
[361622157,1747645488412,-530.02968284,0.00013699,2]
[361622158,1747645488421,-530.02968284,0.00013699,2]
[361622159,1747645488430,-530.02968284,0.00013699,2]
[361622160,1747645488439,-530.02968284,0.00013699,2]
[361622161,1747645488447,-530.02968284,0.00013699,2]
[361622162,1747645488457,-530.02968284,0.00013699,2]
[361622163,1747645488466,-530.02968284,0.00013699,2]
[361622164,1747645488475,-218.21440912,0.00013699,2]
[361622165,1747645488486,-311.81527372,0.00013699,2]
[361622166,1747645488495,-530.02968284,0.00013699,2]
[361622167,1747645488504,-530.02968284,0.00013699,2]
[361622168,1747645488513,-314.2453606,0.00013699,2]
[361622169,1747645488525,-215.78432224,0.00013699,2]
[361622170,1747645488534,-184.21567776,0.00013699,2]
[361622171,1747645488546,-345.81400508,0.00013699,2]
[361622172,1747645488555,-218.02599492,0.00013699,2]
[361622173,1747645488566,-312.00368792,0.00013699,2]
[361622174,1747645488575,-107.99631208,0.00013699,2]
[361622175,1747645488615,-422.03337076,0.00013699,2]
[361622176,1747645488624,-26.6103666,0.00013699,2]
[361622177,1747645488639,-503.41931624,0.00013699,2]
[361622178,1747645488648,-108.77068376,0.00013699,2]
[361622179,1747645488659,-420.0,0.00013699,2]
[361622180,1747645488670,-1.25899908,0.00013699,2]
[361622181,1747645488680,-499.90100092,0.00013699,2]
[361622182,1747645488691,-30.12868192,0.00013699,2]
[361622183,1747645488700,-369.87131808,0.00013699,2]
[361622184,1747645488717,-145.31753365,0.00013699,2]
[361622185,1747645488727,-274.68246635,0.00013699,2]
[361622186,1747645488758,-240.50638538,0.00013699,2]
[361622187,1747645488767,-215.78361462,0.00013699,2]
[361622188,1747645488778,-299.40523711,0.00013699,2]
[361622189,1747645488787,-271.90476289,0.00013699,2]
[361622190,1747645488798,-243.28408884,0.00013699,2]
[361622191,1747645488808,-515.18885173,0.00013699,2]
[361622192,1747645488817,-515.18885173,0.00013699,2]
[361622193,1747645488826,-515.18885173,0.00013699,2]
[361622194,1747645488836,-515.18885173,0.00013699,2]
[361622195,1747645488845,-515.18885173,0.00013699,2]
[361622196,1747645488854,-515.18885173,0.00013699,2]
[361622197,1747645488863,-515.18885173,0.00013699,2]
[361622198,1747645488872,-515.18885173,0.00013699,2]
[361622199,1747645488881,-515.18885173,0.00013699,2]
[361622200,1747645488890,-515.18885173,0.00013699,2]
[361622201,1747645488899,-515.18885173,0.00013699,2]
[361622202,1747645488908,-515.18885173,0.00013699,2]
[361622203,1747645488918,-515.18885173,0.00013699,2]
[361622204,1747645488928,-515.18885173,0.00013699,2]
[361622205,1747645488937,-515.18885173,0.00013699,2]
[361622206,1747645488946,-515.18885173,0.00013699,2]
[361622207,1747645488955,-515.18885173,0.00013699,2]
[361622208,1747645488965,-515.18885173,0.00013699,2]
[361622209,1747645488974,-66.34658002,0.00013699,2]
[361622210,1747645488995,-448.84227171,0.00013699,2]
[361622211,1747645489004,-146.05772829,0.00013699,2]
[361622212,1747645489245,-369.13112344,0.00013699,2]
[361622213,1747645489262,-50.86887656,0.00013699,2]
[361622214,1747645489283,-464.31997517,0.00013699,2]
[361622215,1747645489293,-500.0,0.00013699,2]
[361622216,1747645489303,-180.54407292,0.00013699,2]
[361622217,1747645489312,-236.91595191,0.00013699,2]
[361622218,1747645489387,-263.08404809,0.00013699,2]
[361622219,1747645489396,-156.91595191,0.00013699,2]
[361622220,1747645489429,-343.08404809,0.00013699,2]
[361622221,1747645489439,-76.91595191,0.00013699,2]
[361622222,1747645489450,-400.0,0.00013699,2]
[361622223,1747645489467,-79.24851634,0.00013699,2]
[361622224,1747645489476,-340.75148366,0.00013699,2]
[361622225,1747645489488,-159.24851635,0.00013699,2]
[361622226,1747645489497,-260.75148365,0.000137,2]
[361622227,1747645489508,-420.0,0.000137,2]
[361622228,1747645489528,-258.09713353,0.000137,2]
[361622229,1747645489540,-61.15138282,0.000137,2]
[361622230,1747645489549,-163.69254391,0.00013712,2]
[361622231,1747645489558,-163.69254391,0.00013727,2]
[361622232,1747645489568,-31.46352936,0.00013732,2]
[361622233,1747645489591,-400.0,0.00013732,2]
[361622234,1747645489602,-981.8,0.00013732,2]
[361622235,1747645489613,-400.0,0.00013732,2]
[361622236,1747645489625,-1058.63439424,0.00013732,2]
[361622237,1747645489995,-400.0,0.00013698,2]
[361622238,1747645490006,-420.0,0.00013698,2]
[361622239,1747645490015,-180.0,0.00013732,2]
[361622240,1747645490034,-831.13501922,0.00013732,2]
[361622241,1747645490045,-478.44,0.00013732,2]
[361622242,1747645490059,-400.0,0.00013732,2]
[361622243,1747645490077,-420.0,0.00013732,2]
[361622244,1747645490087,-400.0,0.00013732,2]
[361622245,1747645490098,-420.0,0.00013732,2]
[361622246,1747645490113,-618.81,0.00013732,2]
[361622247,1747645490187,-420.0,0.00013732,2]
[361622248,1747645490336,-546.77,0.00013732,2]
[361622249,1747645490389,-1013.79,0.00013732,2]
[361622250,1747645490443,-432.28,0.00013732,2]
[361622251,1747645490467,-420.0,0.00013732,2]
[361622252,1747645490479,-561.5,0.00013732,2]
[361622253,1747645490494,-400.0,0.00013732,2]
[361622254,1747645490505,-301.0522621,0.00013732,2]
[361622255,1747645490516,-163.69254391,0.00013742,2]
[361622256,1747645490527,-150.09412696,0.00013749,2]
[361622257,1747645490537,-1433.75981245,0.00013751,2]
[361622258,1747645490547,-163.69254391,0.00013757,2]
[361622259,1747645490557,-163.69254391,0.00013772,2]
[361622260,1747645490566,-163.69254391,0.00013787,2]
[361622261,1747645490575,-324.91173924,0.00013798,2]
[361622262,1747645490585,-150.09412696,0.00013799,2]
[361622263,1747645490594,-1155.25,0.000138,2]
[361622264,1747645490604,-194.10099441,0.000138,2]
[361622265,1747645490614,-46.92676224,0.000138,2]
[361622266,1747645490626,-813.83,0.000138,2]
[361622267,1747645490638,-823.89,0.000138,2]
[361622268,1747645490649,-221.23470546,0.000138,2]
[361622269,1747645490659,-163.69254391,0.00013802,2]
[361622270,1747645490668,-15.07275063,0.00013806,2]
[361622271,1747645490686,-184.92724937,0.00013806,2]
[361622272,1747645490696,-315.07275063,0.00013807,2]
[361622273,1747645490707,-184.92724937,0.00013807,2]
[361622274,1747645490716,-215.07275063,0.00013807,2]
[361622275,1747645490728,-284.92724937,0.00013807,2]
[361622276,1747645490737,-135.07275063,0.00013807,2]
[361622277,1747645490748,-364.92724937,0.00013807,2]
[361622278,1747645490758,-35.07275063,0.00013807,2]
[361622279,1747645490777,-663.92724937,0.00013807,2]
[361622280,1747645490786,-255.01275063,0.00013808,2]
[361622281,1747645490801,-420.0,0.00013808,2]
[361622282,1747645490843,-955.39,0.00013808,2]
[361622283,1747645490854,-982.57,0.00013808,2]
[361622284,1747645490923,-615.1,0.00013808,2]
[361622285,1747645490979,-400.0,0.00013808,2]
[361622286,1747645490997,-1193.67,0.00013808,2]
[361622287,1747645491008,-169524.65,0.00013808,2]
[361622288,1747645491125,-420.0,0.00013808,2]
[361622289,1747645491136,-1192.25,0.00013808,2]
[361622290,1747645491149,-420.0,0.00013808,2]
[361622291,1747645491166,-420.0,0.00013808,2]
[361622292,1747645491177,-422.01,0.00013808,2]
[361622293,1747645491190,-400.0,0.00013808,2]
[361622294,1747645491321,-401.07433648,0.00013698,2]
[361622295,1747645491330,-272.39403967,0.00013698,2]
[361622296,1747645491340,-1022.21,0.00013698,2]
[361622297,1747645491350,-10305.95137589,0.00013766,2]
[361622298,1747645491368,-409.72382903,0.00013766,2]
[361622299,1747645491378,-10.27617097,0.00013808,2]
[361622300,1747645491390,-1218.92,0.00013808,2]
[361622301,1747645491401,-400.0,0.00013808,2]
[361622302,1747645491412,-642.08,0.00013808,2]
[361622303,1747645491430,-180.96659774,0.00013808,2]
[361622304,1747645491442,-1838.69999455,0.00013808,2]
[361622305,1747645491453,-661.61,0.00013808,2]
[361622306,1747645491465,-1090.62,0.00013808,2]
[361622307,1747645491476,-588.37,0.00013808,2]
[361622308,1747645491493,-400.0,0.00013808,2]
[361622309,1747645491504,-420.0,0.00013808,2]
[361622310,1747645491515,-600.42,0.00013808,2]
[361622311,1747645491528,-996.75,0.00013808,2]
[361622312,1747645491538,-400.0,0.00013808,2]
[361622313,1747645491556,-420.0,0.00013808,2]
[361622314,1747645491574,-380.0,0.00013698,2]
[361622315,1747645491584,-40.0,0.00013808,2]
[361622316,1747645491595,-420.0,0.00013808,2]
[361622317,1747645491606,-420.0,0.00013808,2]
[361622318,1747645491617,-455.74,0.00013808,2]
[361622319,1747645491634,-7084.07,0.00013808,2]
[361622320,1747645491645,-7165.04,0.00013808,2]
[361622321,1747645491657,-420.0,0.00013808,2]
[361622322,1747645491674,-3549.59,0.00013808,2]
[361622323,1747645491689,-746.57,0.00013808,2]